{"text_format":"3","workbook":"xlsx","n_sheets":6,"sheets":["Algus","Armatuurlaud","Väljaminekud ja sissetulekud","Eelarvearuanne","Andmeloendid","Kategooria liigendtabel"],"not_rendered":{"charts":3,"defined_names":23,"pivot_tables":2},"read":"whole","date_system":"1900"}

{"sheet":"Algus","index":0,"n_rows":8,"n_cols":2,"rows_kept":8}
[null,"Teave malli kohta"]
[null,"Selle malli abil saate koostada kahenädalase kodueelarve."]
[null,"Tööleht „Andmelaud“ sisaldab igakuiseid ja aastaseid kogusummasid ning kahe nädala sissetulekute ja väljaminekute tabelit."]
[null,"Sisestage töölehel „Andmeloendid“ kategooriad ning sisestage töölehel „Sissetulekud ja väljaminekud“ väärtused."]
[null,"PivotTable-liigendtabelit värskendage töölehel „Eelarvearuanne“."]
[null,"Märkus."]
[null,"Kõigi töölehtede veerus A on toodud lisajuhised. See tekst on tahtlikult peidetud. Teksti eemaldamiseks valige veerg A ja seejärel käsk KUSTUTA. "]
[null,"Tabeli kohta lisateabe saamiseks vajutage tabelis tõstuklahvi (SHIFT) ja seejärel klahvi F10, valige suvand TABEL ja seejärel käsk ASETEKST. PivotTable-liigendtabelite puhul vajutage tabelis tõstuklahvi (SHIFT) ja seejärel klahvi F10, valige PIVOTTABLE-LIIGENDTABELI SUVANDID ja seejärel valige vahekaart ASETEKST."]

{"sheet":"Armatuurlaud","index":1,"n_rows":12,"n_cols":15,"rows_kept":12,"merged":[[0,1,0,13],[1,2,1,7]]}
["Sellel töölehel saate luua igakuiste ja aastaste kogusummade ning kahe nädala sissetulekute ja väljaminekute andmelaua. Töölehe kasutamise kohta käivad kasulikud juhised leiate selle veeru lahtritest. Selle töövihiku pealkiri on parempoolses lahtris ning töölehe pealkiri on lahtris O1.","Kahe nädala põhine kodueelarve",{"$nulls":12},"ANDMELAUD"]
["Parempoolses lahtris kuu muutmiseks valige lahtris C2 kuvatud liugur ning lahtris I2 aasta muutmiseks valige lahtris J2 kuvatud liugur.",{"$f":"CHOOSE(Kuu_number,\"JAANUAR\",\"VEEBRUAR\",\"MÄRTS\",\"APRILL\",\"MAI\",\"JUUNI\",\"JUULI\",\"AUGUST\",\"SEPTEMBER\",\"OKTOOBER\",\"NOVEMBER\",\"DETSEMBER\")","v":"DETSEMBER"},12,{"$nulls":5},{"$f":"YEAR(TODAY())","v":2022}]
["Silt „Kuu kogusummad“ on parempoolses lahtris ja silt „Aasta kogusummad“ on lahtris I3.","KUU KOGUSUMMAD",{"$nulls":6},"AASTA KOGUSUMMAD"]
["Lahtris C4 on kuu kogusissetulekuid kuu koguväljaminekutega võrdlev lintdiagramm ning lahtris J4 on aasta kogusissetulekuid aasta koguväljaminekutega võrdlev lintdiagramm. Järgmised juhised on toodud lahtris A8.","SISSETULEKUD",null,{"$f":"Igakuised_sissetulekud_kokku","v":{"v":0,"d":"0 €"}},{"$nulls":4},"SISSETULEKUD",null,null,{"$f":"Aasta_väljaminekud_kokku","v":{"v":10742,"d":"10,742 €"}}]
[null,"VÄLJAMINEKUD",null,{"$f":"Igakuised_väljaminekud_kokku","v":{"v":0,"d":"0 €"}},{"$nulls":4},"VÄLJAMINEKUD",null,null,{"$f":"Aasta_sissetulekud_kokku","v":{"v":13200,"d":"13,200 €"}}]
[]
[]
["Parempoolsest lahtrist algavat tabelit „Andmelaud“ värskendatakse automaatselt.","Kategooria","JAANUAR","VEEBRUAR","MÄRTS","APRILL","MAI","JUUNI","JUULI","AUGUST","SEPTEMBER","OKTOOBER","NOVEMBER","DETSEMBER","Minigraafik"]
[null,"Sissetulekud 1.–15.",{"$f":"SUMIFS(Sissetulekud[SUMMA],Sissetulekud[KUUPÄEV],\"<=\"&Kuupäev_keskel,Sissetulekud[KUUPÄEV],\">=\"&Kuupäev_alguses)","v":{"v":0,"d":"0.00 €"}},{"$f":"SUMIFS(Sissetulekud[SUMMA],Sissetulekud[KUUPÄEV],\"<=\"&Kuupäev_keskel,Sissetulekud[KUUPÄEV],\">=\"&Kuupäev_alguses)","v":{"v":0,"d":"0.00 €"}},{"$f":"SUMIFS(Sissetulekud[SUMMA],Sissetulekud[KUUPÄEV],\"<=\"&Kuupäev_keskel,Sissetulekud[KUUPÄEV],\">=\"&Kuupäev_alguses)","v":{"v":1300,"d":"1,300.00 €"}},{"$f":"SUMIFS(Sissetulekud[SUMMA],Sissetulekud[KUUPÄEV],\"<=\"&Kuupäev_keskel,Sissetulekud[KUUPÄEV],\">=\"&Kuupäev_alguses)","v":{"v":2600,"d":"2,600.00 €"}},{"$f":"SUMIFS(Sissetulekud[SUMMA],Sissetulekud[KUUPÄEV],\"<=\"&Kuupäev_keskel,Sissetulekud[KUUPÄEV],\">=\"&Kuupäev_alguses)","v":{"v":2600,"d":"2,600.00 €"}},{"$f":"SUMIFS(Sissetulekud[SUMMA],Sissetulekud[KUUPÄEV],\"<=\"&Kuupäev_keskel,Sissetulekud[KUUPÄEV],\">=\"&Kuupäev_alguses)","v":{"v":0,"d":"0.00 €"}},{"$f":"SUMIFS(Sissetulekud[SUMMA],Sissetulekud[KUUPÄEV],\"<=\"&Kuupäev_keskel,Sissetulekud[KUUPÄEV],\">=\"&Kuupäev_alguses)","v":{"v":0,"d":"0.00 €"}},{"$f":"SUMIFS(Sissetulekud[SUMMA],Sissetulekud[KUUPÄEV],\"<=\"&Kuupäev_keskel,Sissetulekud[KUUPÄEV],\">=\"&Kuupäev_alguses)","v":{"v":0,"d":"0.00 €"}},{"$f":"SUMIFS(Sissetulekud[SUMMA],Sissetulekud[KUUPÄEV],\"<=\"&Kuupäev_keskel,Sissetulekud[KUUPÄEV],\">=\"&Kuupäev_alguses)","v":{"v":0,"d":"0.00 €"}},{"$f":"SUMIFS(Sissetulekud[SUMMA],Sissetulekud[KUUPÄEV],\"<=\"&Kuupäev_keskel,Sissetulekud[KUUPÄEV],\">=\"&Kuupäev_alguses)","v":{"v":0,"d":"0.00 €"}},{"$f":"SUMIFS(Sissetulekud[SUMMA],Sissetulekud[KUUPÄEV],\"<=\"&Kuupäev_keskel,Sissetulekud[KUUPÄEV],\">=\"&Kuupäev_alguses)","v":{"v":0,"d":"0.00 €"}},{"$f":"SUMIFS(Sissetulekud[SUMMA],Sissetulekud[KUUPÄEV],\"<=\"&Kuupäev_keskel,Sissetulekud[KUUPÄEV],\">=\"&Kuupäev_alguses)","v":{"v":0,"d":"0.00 €"}}]
[null,"Sissetulekud 16.–kuu lõpp",{"$f":"SUMIFS(Sissetulekud[SUMMA],Sissetulekud[KUUPÄEV],\"<=\"&Kuupäev_lõpus,Sissetulekud[KUUPÄEV],\">=\"&Kuupäev_keskel+1)","v":{"v":0,"d":"0.00 €"}},{"$f":"SUMIFS(Sissetulekud[SUMMA],Sissetulekud[KUUPÄEV],\"<=\"&Kuupäev_lõpus,Sissetulekud[KUUPÄEV],\">=\"&Kuupäev_keskel+1)","v":{"v":0,"d":"0.00 €"}},{"$f":"SUMIFS(Sissetulekud[SUMMA],Sissetulekud[KUUPÄEV],\"<=\"&Kuupäev_lõpus,Sissetulekud[KUUPÄEV],\">=\"&Kuupäev_keskel+1)","v":{"v":3100,"d":"3,100.00 €"}},{"$f":"SUMIFS(Sissetulekud[SUMMA],Sissetulekud[KUUPÄEV],\"<=\"&Kuupäev_lõpus,Sissetulekud[KUUPÄEV],\">=\"&Kuupäev_keskel+1)","v":{"v":3100,"d":"3,100.00 €"}},{"$f":"SUMIFS(Sissetulekud[SUMMA],Sissetulekud[KUUPÄEV],\"<=\"&Kuupäev_lõpus,Sissetulekud[KUUPÄEV],\">=\"&Kuupäev_keskel+1)","v":{"v":500,"d":"500.00 €"}},{"$f":"SUMIFS(Sissetulekud[SUMMA],Sissetulekud[KUUPÄEV],\"<=\"&Kuupäev_lõpus,Sissetulekud[KUUPÄEV],\">=\"&Kuupäev_keskel+1)","v":{"v":0,"d":"0.00 €"}},{"$f":"SUMIFS(Sissetulekud[SUMMA],Sissetulekud[KUUPÄEV],\"<=\"&Kuupäev_lõpus,Sissetulekud[KUUPÄEV],\">=\"&Kuupäev_keskel+1)","v":{"v":0,"d":"0.00 €"}},{"$f":"SUMIFS(Sissetulekud[SUMMA],Sissetulekud[KUUPÄEV],\"<=\"&Kuupäev_lõpus,Sissetulekud[KUUPÄEV],\">=\"&Kuupäev_keskel+1)","v":{"v":0,"d":"0.00 €"}},{"$f":"SUMIFS(Sissetulekud[SUMMA],Sissetulekud[KUUPÄEV],\"<=\"&Kuupäev_lõpus,Sissetulekud[KUUPÄEV],\">=\"&Kuupäev_keskel+1)","v":{"v":0,"d":"0.00 €"}},{"$f":"SUMIFS(Sissetulekud[SUMMA],Sissetulekud[KUUPÄEV],\"<=\"&Kuupäev_lõpus,Sissetulekud[KUUPÄEV],\">=\"&Kuupäev_keskel+1)","v":{"v":0,"d":"0.00 €"}},{"$f":"SUMIFS(Sissetulekud[SUMMA],Sissetulekud[KUUPÄEV],\"<=\"&Kuupäev_lõpus,Sissetulekud[KUUPÄEV],\">=\"&Kuupäev_keskel+1)","v":{"v":0,"d":"0.00 €"}},{"$f":"SUMIFS(Sissetulekud[SUMMA],Sissetulekud[KUUPÄEV],\"<=\"&Kuupäev_lõpus,Sissetulekud[KUUPÄEV],\">=\"&Kuupäev_keskel+1)","v":{"v":0,"d":"0.00 €"}}]
[null,"Väljaminekud 1.–15.",{"$f":"SUMIFS(Väljaminekud[SUMMA],Väljaminekud[KUUPÄEV],\"<=\"&Kuupäev_keskel+1,Väljaminekud[KUUPÄEV],\">=\"&Kuupäev_alguses)","v":{"v":0,"d":"0.00 €"}},{"$f":"SUMIFS(Väljaminekud[SUMMA],Väljaminekud[KUUPÄEV],\"<=\"&Kuupäev_keskel+1,Väljaminekud[KUUPÄEV],\">=\"&Kuupäev_alguses)","v":{"v":0,"d":"0.00 €"}},{"$f":"SUMIFS(Väljaminekud[SUMMA],Väljaminekud[KUUPÄEV],\"<=\"&Kuupäev_keskel+1,Väljaminekud[KUUPÄEV],\">=\"&Kuupäev_alguses)","v":{"v":1150,"d":"1,150.00 €"}},{"$f":"SUMIFS(Väljaminekud[SUMMA],Väljaminekud[KUUPÄEV],\"<=\"&Kuupäev_keskel+1,Väljaminekud[KUUPÄEV],\">=\"&Kuupäev_alguses)","v":{"v":5175,"d":"5,175.00 €"}},{"$f":"SUMIFS(Väljaminekud[SUMMA],Väljaminekud[KUUPÄEV],\"<=\"&Kuupäev_keskel+1,Väljaminekud[KUUPÄEV],\">=\"&Kuupäev_alguses)","v":{"v":2792,"d":"2,792.00 €"}},{"$f":"SUMIFS(Väljaminekud[SUMMA],Väljaminekud[KUUPÄEV],\"<=\"&Kuupäev_keskel+1,Väljaminekud[KUUPÄEV],\">=\"&Kuupäev_alguses)","v":{"v":0,"d":"0.00 €"}},{"$f":"SUMIFS(Väljaminekud[SUMMA],Väljaminekud[KUUPÄEV],\"<=\"&Kuupäev_keskel+1,Väljaminekud[KUUPÄEV],\">=\"&Kuupäev_alguses)","v":{"v":0,"d":"0.00 €"}},{"$f":"SUMIFS(Väljaminekud[SUMMA],Väljaminekud[KUUPÄEV],\"<=\"&Kuupäev_keskel+1,Väljaminekud[KUUPÄEV],\">=\"&Kuupäev_alguses)","v":{"v":0,"d":"0.00 €"}},{"$f":"SUMIFS(Väljaminekud[SUMMA],Väljaminekud[KUUPÄEV],\"<=\"&Kuupäev_keskel+1,Väljaminekud[KUUPÄEV],\">=\"&Kuupäev_alguses)","v":{"v":0,"d":"0.00 €"}},{"$f":"SUMIFS(Väljaminekud[SUMMA],Väljaminekud[KUUPÄEV],\"<=\"&Kuupäev_keskel+1,Väljaminekud[KUUPÄEV],\">=\"&Kuupäev_alguses)","v":{"v":0,"d":"0.00 €"}},{"$f":"SUMIFS(Väljaminekud[SUMMA],Väljaminekud[KUUPÄEV],\"<=\"&Kuupäev_keskel+1,Väljaminekud[KUUPÄEV],\">=\"&Kuupäev_alguses)","v":{"v":0,"d":"0.00 €"}},{"$f":"SUMIFS(Väljaminekud[SUMMA],Väljaminekud[KUUPÄEV],\"<=\"&Kuupäev_keskel+1,Väljaminekud[KUUPÄEV],\">=\"&Kuupäev_alguses)","v":{"v":0,"d":"0.00 €"}}]
[null,"Väljaminekud 16.–kuu lõpp",{"$f":"SUMIFS(Väljaminekud[SUMMA],Väljaminekud[KUUPÄEV],\"<=\"&Kuupäev_lõpus,Väljaminekud[KUUPÄEV],\">=\"&Kuupäev_keskel+1)","v":{"v":0,"d":"0.00 €"}},{"$f":"SUMIFS(Väljaminekud[SUMMA],Väljaminekud[KUUPÄEV],\"<=\"&Kuupäev_lõpus,Väljaminekud[KUUPÄEV],\">=\"&Kuupäev_keskel+1)","v":{"v":75,"d":"75.00 €"}},{"$f":"SUMIFS(Väljaminekud[SUMMA],Väljaminekud[KUUPÄEV],\"<=\"&Kuupäev_lõpus,Väljaminekud[KUUPÄEV],\">=\"&Kuupäev_keskel+1)","v":{"v":200,"d":"200.00 €"}},{"$f":"SUMIFS(Väljaminekud[SUMMA],Väljaminekud[KUUPÄEV],\"<=\"&Kuupäev_lõpus,Väljaminekud[KUUPÄEV],\">=\"&Kuupäev_keskel+1)","v":{"v":875,"d":"875.00 €"}},{"$f":"SUMIFS(Väljaminekud[SUMMA],Väljaminekud[KUUPÄEV],\"<=\"&Kuupäev_lõpus,Väljaminekud[KUUPÄEV],\">=\"&Kuupäev_keskel+1)","v":{"v":500,"d":"500.00 €"}},{"$f":"SUMIFS(Väljaminekud[SUMMA],Väljaminekud[KUUPÄEV],\"<=\"&Kuupäev_lõpus,Väljaminekud[KUUPÄEV],\">=\"&Kuupäev_keskel+1)","v":{"v":0,"d":"0.00 €"}},{"$f":"SUMIFS(Väljaminekud[SUMMA],Väljaminekud[KUUPÄEV],\"<=\"&Kuupäev_lõpus,Väljaminekud[KUUPÄEV],\">=\"&Kuupäev_keskel+1)","v":{"v":0,"d":"0.00 €"}},{"$f":"SUMIFS(Väljaminekud[SUMMA],Väljaminekud[KUUPÄEV],\"<=\"&Kuupäev_lõpus,Väljaminekud[KUUPÄEV],\">=\"&Kuupäev_keskel+1)","v":{"v":0,"d":"0.00 €"}},{"$f":"SUMIFS(Väljaminekud[SUMMA],Väljaminekud[KUUPÄEV],\"<=\"&Kuupäev_lõpus,Väljaminekud[KUUPÄEV],\">=\"&Kuupäev_keskel+1)","v":{"v":0,"d":"0.00 €"}},{"$f":"SUMIFS(Väljaminekud[SUMMA],Väljaminekud[KUUPÄEV],\"<=\"&Kuupäev_lõpus,Väljaminekud[KUUPÄEV],\">=\"&Kuupäev_keskel+1)","v":{"v":0,"d":"0.00 €"}},{"$f":"SUMIFS(Väljaminekud[SUMMA],Väljaminekud[KUUPÄEV],\"<=\"&Kuupäev_lõpus,Väljaminekud[KUUPÄEV],\">=\"&Kuupäev_keskel+1)","v":{"v":0,"d":"0.00 €"}},{"$f":"SUMIFS(Väljaminekud[SUMMA],Väljaminekud[KUUPÄEV],\"<=\"&Kuupäev_lõpus,Väljaminekud[KUUPÄEV],\">=\"&Kuupäev_keskel+1)","v":{"v":0,"d":"0.00 €"}}]

{"sheet":"Väljaminekud ja sissetulekud","index":2,"n_rows":36,"n_cols":9,"rows_kept":36,"merged":[[0,1,0,6],[0,7,0,8]]}
["Sellel töölehel saate luua sissetulekute ja väljaminekute loendi. Töölehe kasutamise kohta käivad kasulikud juhised leiate selle veeru lahtritest. Töövihiku pealkiri on parempoolses lahtris ning töölehe pealkiri on lahtris H1.",{"$f":"Kahe_nädala_põhise_kodueelarve_pealkiri","v":"Kahe nädala põhine kodueelarve"},{"$nulls":5},"SISSETULEKUD JA VÄLJAMINEKUD"]
["Silt „Sissetulekud“ on parempoolses lahtris ning silt „Väljaminekud“ on lahtris F2.","SISSETULEKUD",{"$nulls":3},"VÄLJAMINEKUD"]
["Sisestage üksikasjad tabelisse „Sissetulekud“, mis algab parempoolsest lahtrist, ja tabelisse „Väljaminekud“, mis algab lahtrist F3.","KUUPÄEV","KIRJELDUS","SUMMA",null,"KUUPÄEV","KATEGOORIA","KIRJELDUS","SUMMA"]
[null,{"$f":"TODAY()","v":"2022-05-17"},"Lisatasu",{"v":500,"d":"500.00 €"},null,{"$f":"TODAY()","v":"2022-05-17"},"Meditsiinitarbed","Kindlustus",{"v":500,"d":"500.00 €"}]
[null,{"$f":"TODAY()-14","v":"2022-05-03"},"Georgi palk",{"v":1300,"d":"1,300.00 €"},null,{"$f":"TODAY()-7","v":"2022-05-10"},"Majapidamine","Hüpoteek",{"v":1000,"d":"1,000.00 €"}]
[null,{"$f":"TODAY()-14","v":"2022-05-03"},"Kersti palk",{"v":1300,"d":"1,300.00 €"},null,"2022-05-10","Majapidamine","Elekter",{"v":100,"d":"100.00 €"}]
[null,{"$f":"TODAY()-28","v":"2022-04-19"},"Georgi palk",{"v":1500,"d":"1,500.00 €"},null,"2022-05-10","Majapidamine","Vesi/kanalisatsioon",{"v":50,"d":"50.00 €"}]
[null,{"$f":"TODAY()-28","v":"2022-04-19"},"Kersti palk",{"v":1600,"d":"1,600.00 €"},null,"2022-05-10","Majapidamine","Prügivedu",{"v":25,"d":"25.00 €"}]
[null,{"$f":"TODAY()-42","v":"2022-04-05"},"Georgi palk",{"v":1300,"d":"1,300.00 €"},null,"2022-05-10","Majapidamine","Mobiiltelefon",{"v":100,"d":"100.00 €"}]
[null,{"$f":"TODAY()-42","v":"2022-04-05"},"Kersti palk",{"v":1300,"d":"1,300.00 €"},null,"2022-05-10","Majapidamine","Mobiiltelefon",{"v":30,"d":"30.00 €"}]
[null,{"$f":"TODAY()-56","v":"2022-03-22"},"Georgi palk",{"v":1500,"d":"1,500.00 €"},null,"2022-05-10","Majapidamine","Hüpoteek",{"v":50,"d":"50.00 €"}]
[null,{"$f":"TODAY()-56","v":"2022-03-22"},"Kersti palk",{"v":1600,"d":"1,600.00 €"},null,"2022-05-10","Majapidamine","Mobiiltelefon",{"v":50,"d":"50.00 €"}]
[null,{"$f":"TODAY()-70","v":"2022-03-08"},"Georgi palk",{"v":1300,"d":"1,300.00 €"},null,{"$f":"TODAY()-7","v":"2022-05-10"},"Majapidamine","Mobiiltelefon",{"v":25,"d":"25.00 €"}]
[{"$nulls":5},{"$f":"TODAY()-8","v":"2022-05-09"},"Majapidamine","Elekter",{"v":100,"d":"100.00 €"}]
[{"$nulls":5},{"$f":"TODAY()-9","v":"2022-05-08"},"Meelelahutus","Filmid",{"v":37,"d":"37.00 €"}]
[{"$nulls":5},{"$f":"TODAY()-10","v":"2022-05-07"},"Toit","Toit",{"v":350,"d":"350.00 €"}]
[{"$nulls":5},{"$f":"TODAY()-11","v":"2022-05-06"},"Toit","Väljas söömine",{"v":75,"d":"75.00 €"}]
[{"$nulls":5},{"$f":"TODAY()-12","v":"2022-05-05"},"Lapsed","Lõunasöögiraha",{"v":150,"d":"150.00 €"}]
[{"$nulls":5},{"$f":"TODAY()-13","v":"2022-05-04"},"Investeerimiskontod","Säästud",{"v":250,"d":"250.00 €"}]
[{"$nulls":5},{"$f":"TODAY()-14","v":"2022-05-03"},"Investeerimiskontod","Investeerimiskonto",{"v":250,"d":"250.00 €"}]
[{"$nulls":5},{"$f":"TODAY()-15","v":"2022-05-02"},"Isiklik","Tervise-/spordiklubi",{"v":100,"d":"100.00 €"}]
[{"$nulls":5},{"$f":"TODAY()-16","v":"2022-05-01"},"Lemmikloomad","Toit",{"v":50,"d":"50.00 €"}]
[{"$nulls":5},{"$f":"TODAY()-20","v":"2022-04-27"},"Lemmikloomad","Hoolitsus",{"v":50,"d":"50.00 €"}]
[{"$nulls":5},{"$f":"TODAY()-20","v":"2022-04-27"},"Lemmikloomad","Muu",{"v":50,"d":"50.00 €"}]
[{"$nulls":5},{"$f":"TODAY()-25","v":"2022-04-22"},"Transport","1. sõiduki makse ",{"v":300,"d":"300.00 €"}]
[{"$nulls":5},{"$f":"TODAY()-25","v":"2022-04-22"},"Transport","2. sõiduki makse ",{"v":350,"d":"350.00 €"}]
[{"$nulls":5},{"$f":"TODAY()-25","v":"2022-04-22"},"Transport","Autokindlustus",{"v":50,"d":"50.00 €"}]
[{"$nulls":5},{"$f":"TODAY()-30","v":"2022-04-17"},"Transport","Kütus",{"v":50,"d":"50.00 €"}]
[{"$nulls":5},{"$f":"TODAY()-31","v":"2022-04-16"},"Transport","Kütus",{"v":25,"d":"25.00 €"}]
[{"$nulls":5},{"$f":"TODAY()-42","v":"2022-04-05"},"Transport","2. sõiduki makse ",{"v":150,"d":"150.00 €"}]
[{"$nulls":5},{"$f":"TODAY()-45","v":"2022-04-02"},"Majapidamine","Hüpoteek",{"v":5000,"d":"5,000.00 €"}]
[{"$nulls":5},{"$f":"TODAY()-50","v":"2022-03-28"},"Majapidamine","Elekter",{"v":200,"d":"200.00 €"}]
[{"$nulls":5},{"$f":"TODAY()-65","v":"2022-03-13"},"Majapidamine","Mobiiltelefon",{"v":100,"d":"100.00 €"}]
[{"$nulls":5},{"$f":"TODAY()-70","v":"2022-03-08"},"Majapidamine","Prügivedu",{"v":50,"d":"50.00 €"}]
[{"$nulls":5},{"$f":"TODAY()-75","v":"2022-03-03"},"Majapidamine","Hüpoteek",{"v":1000,"d":"1,000.00 €"}]
[{"$nulls":5},{"$f":"TODAY()-78","v":"2022-02-28"},"Meelelahutus","Filmid",{"v":75,"d":"75.00 €"}]

{"sheet":"Eelarvearuanne","index":3,"n_rows":26,"n_cols":6,"rows_kept":26,"merged":[[0,1,0,4],[1,1,1,3],[4,3,4,5]]}
["Sellel töölehel saate luua eelarvearuande. Töölehe kasutamise kohta käivad kasulikud juhised leiate selle veeru lahtritest. Töövihiku pealkiri on parempoolses lahtris ning töölehe pealkiri on lahtris F1.",{"$f":"Kahe_nädala_põhise_kodueelarve_pealkiri","v":"Kahe nädala põhine kodueelarve"},{"$nulls":3},"EELARVEARUANNE"]
["Valige „Aastad“, „Kvartalid“, „Kuud“ või „Päevad“ ja kasutage valitud perioodi väljaminekute PivotTable-liigendtabeli koostamiseks parempoolses lahtris kuvatud liugurit. PivotTable-liigendtabeli andmete filtreerimiseks ette nähtud tükeldi „Kategooria“ on lahtris E2 ja tükeldi „Kirjeldus“ on lahtris F2.","Filtreeritav ajaskaala on selles lahtris.",null,null,"Selles lahtris asuva tükeldi abil saate filtreerida PivotTable-liigendtabeli andmeid kategooria alusel.","Selles lahtris asuva tükeldi abil saate filtreerida PivotTable-liigendtabeli andmeid kirjelduse alusel."]
["Näpunäide on parempoolses lahtris.","Selle töölehe andmete värskendamiseks vajutage PivotTable-liigendtabelis „Väljaminekud“ klahvikombinatsiooni Shift+F10 ja seejärel valige Värskenda või valige Värskenda vahekaardil „Analüüs“."]
["Silt „Väljaminekud“ on parempoolses lahtris.","VÄLJAMINEKUD"]
["Väljaminekuid kajastav PivotTable-liigendtabel algab parempoolsest lahtrist. Silt „Kategooria kogusummad“ on lahtris D4.","Reasildid","Summa kogusummast SUMMA","KATEGOORIA KOGUSUMMAD"]
["Iga kategooria kogusummat võrdlev sektordiagramm on lahtris D6.","1. sõiduki makse ",{"v":300,"d":"300.00 €"}]
[null,"2. sõiduki makse ",{"v":500,"d":"500.00 €"}]
[null,"Autokindlustus",{"v":50,"d":"50.00 €"}]
[null,"Elekter",{"v":400,"d":"400.00 €"}]
[null,"Filmid",{"v":112,"d":"112.00 €"}]
[null,"Hoolitsus",{"v":50,"d":"50.00 €"}]
[null,"Hüpoteek",{"v":7050,"d":"7,050.00 €"}]
[null,"Investeerimiskonto",{"v":250,"d":"250.00 €"}]
[null,"Kindlustus",{"v":500,"d":"500.00 €"}]
[null,"Kütus",{"v":75,"d":"75.00 €"}]
[null,"Lõunasöögiraha",{"v":150,"d":"150.00 €"}]
[null,"Mobiiltelefon",{"v":305,"d":"305.00 €"}]
[null,"Muu",{"v":50,"d":"50.00 €"}]
[null,"Prügivedu",{"v":75,"d":"75.00 €"}]
[null,"Säästud",{"v":250,"d":"250.00 €"}]
[null,"Tervise-/spordiklubi",{"v":100,"d":"100.00 €"}]
[null,"Toidukaubad",{"v":350,"d":"350.00 €"}]
[null,"Toit",{"v":50,"d":"50.00 €"}]
[null,"Vesi/kanalisatsioon",{"v":50,"d":"50.00 €"}]
[null,"Väljas söömine",{"v":75,"d":"75.00 €"}]
[null,"Üldkokkuvõte",{"v":10742,"d":"10,742.00 €"}]

{"sheet":"Andmeloendid","index":4,"n_rows":8,"n_cols":13,"rows_kept":8,"merged":[[0,1,0,11]]}
["Sellele töölehele sisestage kategooriaandmed, millega täita töölehe „Väljaminekud ja sissetulekud“ tabeli „Väljaminekud“ ripploendid. Loendite värskendamiseks saate kategooriate nimesid või kirjeldusi muuta iga kategooria all. Töölehe kasutamise kohta käivad kasulikud juhised leiate selle veeru lahtritest. Töövihiku pealkiri on parempoolses lahtris ning töölehe pealkiri on lahtris M1.",{"$f":"Kahe_nädala_põhise_kodueelarve_pealkiri","v":"Kahe nädala põhine kodueelarve"},{"$nulls":10},"ANDMELOENDID"]
["Näpunäide on parempoolses lahtris.","HÄÄLESTUS         Allolevate kategooriaandmetega täidetakse töölehe „Väljaminekud ja sissetulekud“ tabeli „Väljaminekud“ ripploendid. Loendite värskendamiseks muutke iga kategooria all kategooriate nimesid või kirjeldusi."]
["Kategooriate nimesid või kirjeldusi saate muuta parempoolsest lahtrist algavas tabelis iga kategooria all.","Majapidamine","Meelelahutus","Toit","Kingitused/annetused","Lapsed","Investeerimiskontod","Meditsiinitarbed","Muu","Isiklik","Lemmikloomad","Maksud / juriidilised kulud","Transport"]
[null,"Hüpoteek","Filmid","Toit","Heategevus 1","Riided","Pensionikonto","Arst/kliinik","Muu","Riided","Toit","Riiklikud maksud","1. sõiduki makse "]
[null,"Elekter","Video/filmid","Väljas söömine","Heategevus 2","Mänguasjad/mängud","Säästud","Kindlustus","Asutuste liikmemaksud","Juuksed/küüned","Tarbeesemed","Osariigi maksud","2. sõiduki makse "]
[null,"Vesi/kanalisatsioon","Muusika",null,"Heategevus 3","Lõunasöögiraha","Arveldus",null,null,"Keemiline puhastus","Meditsiinitarbed","Kohalikud maksud","Autokindlustus"]
[null,"Prügivedu","Kontserdid/teater",null,"Kingitus","Liikmemaksud/tasud","Pension",null,null,"Tervise-/spordiklubi","Hoolitsus","Muu","Litsentsimine/registreerimine"]
[null,"Mobiiltelefon","Spordiüritused",null,null,"Koolitarbed","Investeerimiskonto",null,null,"Ostud","Muu","Advokaaditasu","Kütus"]

{"sheet":"Kategooria liigendtabel","index":5,"n_rows":13,"n_cols":13,"rows_kept":13,"hidden":true}
[null,"Kahe nädala põhine kodueelarve",{"$nulls":10},"KATEGOORIATE LIIGENDUS"]
[null,"See PivotTable-liigendtabel on eelarvearuande PivotChart-liigenddiagrammi „Kategooria kogusummad“ andmeallikas. "]
[null,"Reasildid","Summa kogusummast SUMMA"]
[null,"Investeerimiskontod",{"v":500,"d":"500 €"}]
[null,"Isiklik",{"v":100,"d":"100 €"}]
[null,"Lapsed",{"v":150,"d":"150 €"}]
[null,"Lemmikloomad",{"v":150,"d":"150 €"}]
[null,"Majapidamine",{"v":7880,"d":"7,880 €"}]
[null,"Meditsiinitarbed",{"v":500,"d":"500 €"}]
[null,"Meelelahutus",{"v":112,"d":"112 €"}]
[null,"Toit",{"v":425,"d":"425 €"}]
[null,"Transport",{"v":925,"d":"925 €"}]
[null,"Üldkokkuvõte",{"v":10742,"d":"10,742 €"}]